fUST/lending_fUST_20241107
["ID","MTS","AMOUNT","RATE_DAILY","PERIOD"]
[341513190,1730943039125,-107410.75765914,0.00022,30]
[341513191,1730943039134,-8262.19482367,0.00022001,2]
[341513192,1730943039144,-693.31,0.00022191,2]
[341513193,1730943039154,-735.56,0.00022191,2]
[341513194,1730943039164,-500.0,0.00022191,2]
[341513195,1730943039174,-500.0,0.00022191,2]
[341513196,1730943039183,-500.0,0.00022191,2]
[341513197,1730943039193,-431.14103294,0.00022224,2]
[341513199,1730943039203,-3474.32,0.00022224,2]
[341513200,1730943039212,-710.41,0.00022224,2]
[341513201,1730943039221,-500.0,0.00022224,2]
[341513202,1730943039231,-612.48,0.00022224,2]
[341513203,1730943039240,-500.0,0.00022224,2]
[341513204,1730943039250,-500.0,0.00022224,2]
[341513205,1730943039259,-500.0,0.00022224,2]
[341513206,1730943039270,-8262.19482367,0.00022329,2]
[341513207,1730943039280,-693.31,0.00022465,2]
[341513208,1730943039292,-735.56,0.00022465,2]
[341513209,1730943039301,-500.0,0.00022465,2]
[341513210,1730943039310,-500.0,0.00022465,2]
[341513211,1730943039323,-500.0,0.00022465,2]
[341513212,1730943039333,-3474.32,0.00022498,2]
[341513213,1730943039343,-710.41,0.00022498,2]
[341513214,1730943039353,-500.0,0.00022498,2]
[341513215,1730943039366,-612.48,0.00022498,2]
[341513216,1730943039376,-500.0,0.00022498,2]
[341513217,1730943039385,-500.0,0.00022498,2]
[341513218,1730943039395,-202.97480714,0.00022498,2]
[341513219,1730943039404,-8262.19482367,0.00022671,2]
[341513220,1730943039414,-693.31,0.00022739,2]
[341513221,1730943039423,-735.56,0.00022739,2]
[341513222,1730943039433,-500.0,0.00022739,2]
[341513223,1730943039442,-500.0,0.00022739,2]
[341513224,1730943039452,-500.0,0.00022739,2]
[341513225,1730943039463,-3474.32,0.00022772,2]
[341513226,1730943039472,-710.41,0.00022772,2]
[341513227,1730943039482,-500.0,0.00022772,2]
[341513228,1730943039492,-612.48,0.00022772,2]
[341513229,1730943039501,-500.0,0.00022772,2]
[341513230,1730943039511,-500.0,0.00022772,2]
[341513231,1730943039521,-420.0,0.00022774,2]
[341513232,1730943039530,-8262.19482367,0.00022979,2]
[341513233,1730943039540,-693.31,0.00023013,2]
[341513234,1730943039549,-735.56,0.00023013,2]
[341513235,1730943039559,-500.0,0.00023013,2]
[341513236,1730943039568,-500.0,0.00023013,2]
[341513237,1730943039581,-3474.32,0.00023046,2]
[341513238,1730943039591,-710.41,0.00023046,2]
[341513239,1730943039600,-500.0,0.00023046,2]
[341513240,1730943039610,-612.48,0.00023046,2]
[341513243,1730943039619,-500.0,0.00023046,2]
[341513246,1730943039628,-500.0,0.00023046,2]
[341513249,1730943039638,-3636.21,0.00023114,2]
[341513251,1730943039648,-27.78119746,0.00023114,2]
[341513335,1730943043530,-500.0,0.00021917,2]
[341513337,1730943043540,-4952.29,0.00021917,2]
[341513338,1730943043549,-500.0,0.00021917,2]
[341513340,1730943043559,-500.0,0.00022191,2]
[341513342,1730943043568,-4952.29,0.00022191,2]
[341513345,1730943043580,-500.0,0.00022191,2]
[341513347,1730943043592,-500.0,0.00022465,2]
[341513349,1730943043603,-4952.29,0.00022465,2]
[341513350,1730943043613,-500.0,0.00022739,2]
[341513351,1730943043622,-4952.29,0.00022739,2]
[341513352,1730943043632,-524.46547161,0.00023013,2]
[341513353,1730943043641,-472.21880254,0.00023114,2]
[341513354,1730943043651,-221.9675746,0.00023114,2]
[341513355,1730943043661,-500.0,0.00023114,2]
[341513357,1730943043671,-500.0,0.00023114,2]
[341513359,1730943043681,-6579.98,0.00023114,2]
[341513361,1730943043690,-500.0,0.00023114,2]
[341513362,1730943043700,-500.0,0.00023114,2]
[341513363,1730943043709,-500.0,0.00023114,2]
[341513364,1730943043719,-500.0,0.00023114,2]
[341513365,1730943043728,-500.0,0.00023114,2]
[341513366,1730943043739,-500.0,0.00023114,2]
[341513367,1730943043748,-500.0,0.00023114,2]
[341513368,1730943043758,-942.11,0.00023114,2]
[341513369,1730943043767,-500.0,0.00023114,2]
[341513370,1730943043777,-8262.19482367,0.00023128,2]
[341513371,1730943043786,-210.25225096,0.0002322,2]
[341513372,1730943043795,-693.31,0.00023287,2]
[341513373,1730943043806,-735.56,0.00023287,2]
[341513374,1730943043815,-500.0,0.00023287,2]
[341513375,1730943043828,-500.0,0.00023287,2]
[341513376,1730943043838,-8262.19482367,0.00023289,2]
[341513377,1730943043848,-3474.32,0.0002332,2]
[341513378,1730943043857,-710.41,0.0002332,2]
[341513379,1730943043866,-500.0,0.0002332,2]
[341513380,1730943043876,-612.48,0.0002332,2]
[341513381,1730943043886,-500.0,0.0002332,2]
[341513382,1730943043896,-500.0,0.0002332,2]
[341513383,1730943043905,-500.0,0.00023388,2]
[341513384,1730943043915,-498.11382332,0.00023388,2]
[341513385,1730943043925,-500.0,0.00023388,2]
[341513386,1730943043935,-6579.98,0.00023388,2]
[341513387,1730943043944,-500.0,0.00023388,2]
[341513388,1730943043953,-500.0,0.00023388,2]
[341513389,1730943043963,-500.0,0.00023388,2]
[341513390,1730943043973,-500.0,0.00023388,2]
[341513391,1730943043982,-500.0,0.00023388,2]
[341513392,1730943043992,-500.0,0.00023388,2]
[341513393,1730943044002,-942.11,0.00023388,2]
[341513394,1730943044011,-500.0,0.00023388,2]
[341513395,1730943044021,-693.31,0.00023561,2]
[341513396,1730943044031,-735.56,0.00023561,2]
[341513397,1730943044041,-500.0,0.00023561,2]
[341513398,1730943044050,-500.0,0.00023561,2]
[341513399,1730943044060,-3474.32,0.00023594,2]
[341513400,1730943044069,-710.41,0.00023594,2]
[341513401,1730943044083,-500.0,0.00023594,2]
[341513402,1730943044093,-612.48,0.00023594,2]
[341513403,1730943044102,-500.0,0.00023594,2]
[341513404,1730943044112,-500.0,0.00023594,2]
[341513405,1730943044122,-8262.19482367,0.00023648,2]
[341513406,1730943044132,-500.0,0.00023662,2]
[341513407,1730943044142,-500.0,0.00023662,2]
[341513408,1730943044152,-6579.98,0.00023662,2]
[341513409,1730943044162,-500.0,0.00023662,2]
[341513410,1730943044172,-500.0,0.00023662,2]
[341513411,1730943044181,-500.0,0.00023662,2]
[341513412,1730943044190,-507.26976205,0.00023662,2]
[341513413,1730943044200,-500.0,0.00023662,2]
[341513414,1730943044209,-500.0,0.00023662,2]
[341513415,1730943044219,-942.11,0.00023662,2]
[341513416,1730943044228,-500.0,0.00023662,2]
[341513417,1730943044238,-151.0,0.00023755,7]
[341513418,1730943044248,-500.0,0.00023785,2]
[341513419,1730943044258,-500.0,0.00023785,2]
[341513420,1730943044268,-500.0,0.00023785,2]
[341513421,1730943044280,-693.31,0.00023835,2]
[341513422,1730943044291,-735.56,0.00023835,2]
[341513423,1730943044301,-500.0,0.00023835,2]
[341513424,1730943044310,-500.0,0.00023835,2]
[341513425,1730943044321,-8262.19482367,0.00023866,2]
[341513426,1730943044333,-3474.32,0.00023868,2]
[341513427,1730943044343,-710.41,0.00023868,2]
[341513428,1730943044353,-500.0,0.00023868,2]
[341513429,1730943044362,-612.48,0.00023868,2]
[341513430,1730943044373,-601.40207508,0.00023868,2]
[341513431,1730943044382,-500.0,0.00023868,2]
[341513432,1730943044392,-6579.98,0.00023936,2]
[341513433,1730943044402,-500.0,0.00023936,2]
[341513434,1730943044412,-500.0,0.00023936,2]
[341513435,1730943044422,-500.0,0.00023936,2]
[341513436,1730943044432,-500.0,0.00023936,2]
[341513437,1730943044442,-942.11,0.00023936,2]
[341513438,1730943044452,-500.0,0.00023936,2]
[341513439,1730943044464,-693.31,0.00024109,2]
[341513440,1730943044473,-735.56,0.00024109,2]
[341513441,1730943044483,-500.0,0.00024109,2]
[341513442,1730943044492,-500.0,0.00024109,2]
[341513443,1730943044502,-500.0,0.00024123,2]
[341513444,1730943044512,-500.0,0.00024123,2]
[341513445,1730943044522,-500.0,0.00024123,2]
[341513446,1730943044532,-500.0,0.00024123,2]
[341513447,1730943044541,-500.0,0.00024123,2]
[341513448,1730943044551,-500.0,0.00024123,2]
[341513449,1730943044560,-500.0,0.00024123,2]
[341513450,1730943044570,-500.0,0.00024123,2]
[341513451,1730943044581,-628.42,0.00024123,2]
[341513452,1730943044590,-501.95367123,0.00024123,2]
[341513453,1730943044600,-298.88583797,0.00024123,2]
[341513515,1730943046382,-500.0,0.00021917,2]
[341513517,1730943046391,-73.62611597,0.00022191,2]
[341513528,1730943046529,-426.37388403,0.00022191,2]
[341513530,1730943046540,-507.84649382,0.00022465,2]
[341513531,1730943046550,-500.0,0.00022465,2]
[341513532,1730943046560,-4952.29,0.00023013,2]
[341513533,1730943046570,-500.0,0.00023114,2]
[341513534,1730943046674,-4952.29,0.00023287,2]
[341513535,1730943046686,-570.30636849,0.00023388,2]
[341513536,1730943046697,-4952.29,0.00023561,2]
[341513537,1730943046707,-260.72,0.00023652,3]
[341513538,1730943046718,-4952.29,0.00023835,2]
[341513539,1730943046727,-4952.29,0.00024109,2]
[341513540,1730943046737,-247.54860959,0.00024123,2]
[341513541,1730943046747,-501.70620443,0.00024123,2]
[341513542,1730943046757,-500.0,0.00024123,2]
[341513543,1730943046768,-3474.32,0.00024142,2]
[341513544,1730943046777,-710.41,0.00024142,2]
[341513545,1730943046787,-500.0,0.00024142,2]
[341513546,1730943046796,-612.48,0.00024142,2]
[341513547,1730943046805,-397.89257883,0.00024142,2]
[341513548,1730943046815,-210.25225093,0.0002415,2]
[341513549,1730943046824,-151.0,0.00024151,7]
[341513550,1730943046838,-158.061433,0.00024151,7]
[341513551,1730943046847,-158.061433,0.00024151,7]
[341513552,1730943046858,-500.0,0.00024179,2]
[341513553,1730943046867,-1522.31,0.00024179,2]
[341513554,1730943046877,-508.0046926,0.00024206,2]
[341513555,1730943046886,-500.0,0.00024206,2]
[341513556,1730943046896,-6579.98,0.0002421,2]
[341513557,1730943046905,-500.0,0.0002421,2]
[341513558,1730943046915,-500.0,0.0002421,2]
[341513559,1730943046924,-500.0,0.0002421,2]
[341513560,1730943046934,-942.11,0.0002421,2]
[341513561,1730943046943,-500.0,0.0002421,2]
[341513562,1730943046953,-8262.19482367,0.00024293,2]
[341513563,1730943046962,-693.31,0.00024383,2]
[341513564,1730943046971,-735.56,0.00024383,2]
[341513565,1730943046980,-500.0,0.00024383,2]
[341513566,1730943046989,-500.0,0.00024383,2]
[341513567,1730943046998,-4952.29,0.00024383,2]
[341513568,1730943047007,-500.0,0.00024397,2]
[341513569,1730943047016,-500.0,0.00024397,2]
[341513570,1730943047025,-240.53228435,0.00024397,2]
[341513571,1730943047035,-500.0,0.00024397,2]
[341513572,1730943047043,-500.0,0.00024397,2]
[341513573,1730943047053,-500.0,0.00024397,2]
[341513574,1730943047062,-500.0,0.00024397,2]
[341513575,1730943047071,-628.42,0.00024397,2]
[341513576,1730943047083,-506.30693551,0.00024397,2]
[341513577,1730943047092,-3474.32,0.00024416,2]
[341513578,1730943047101,-710.41,0.00024416,2]
[341513579,1730943047111,-500.0,0.00024416,2]
[341513580,1730943047120,-612.48,0.00024416,2]
[341513581,1730943047129,-8262.19482367,0.00024424,2]
[341513582,1730943047139,-500.0,0.00024453,2]
[341513583,1730943047148,-1522.31,0.00024453,2]
[341513584,1730943047157,-6579.98,0.00024484,2]
[341513585,1730943047167,-500.0,0.00024484,2]
[341513586,1730943047176,-500.0,0.00024484,2]
[341513587,1730943047186,-500.0,0.00024484,2]
[341513588,1730943047196,-942.11,0.00024484,2]
[341513589,1730943047205,-469.85103562,0.00024484,2]
[341513590,1730943047215,-500.0,0.00024563,2]
[341513591,1730943047224,-231.28446534,0.00024563,2]
[341513592,1730943047234,-350.23126577,0.00024563,2]
[341513593,1730943047243,-525.83770126,0.00024563,2]
[341513594,1730943047253,-502.71463981,0.00024563,2]
[341513595,1730943047262,-503.71497699,0.00024563,2]
[341513596,1730943047272,-500.0,0.00024563,2]
[341513597,1730943047286,-500.0,0.00024563,2]
[341513598,1730943047295,-501.00627428,0.00024563,2]
[341513599,1730943047304,-550.31370914,0.00024563,2]
[341513600,1730943047313,-502.22780148,0.00024563,2]
[341513601,1730943047323,-514.06243271,0.00024563,2]
[341513602,1730943047335,-505.00073285,0.00024563,2]
[341513603,1730943047344,-512.88,0.00024563,2]
[341513604,1730943047353,-500.0,0.00024563,2]
[341513605,1730943047365,-500.0,0.00024563,2]
[341513606,1730943047375,-501.20764664,0.00024563,2]
[341513607,1730943047385,-500.0,0.00024563,2]
[341513608,1730943047394,-500.0,0.00024657,2]
[341513609,1730943047403,-511.99255708,0.00024657,2]
[341513610,1730943047413,-693.31,0.00024657,2]
[341513611,1730943047422,-735.56,0.00024657,2]
[341513612,1730943047431,-150.41580611,0.00024657,2]
[341513613,1730943047440,-500.0,0.00024657,2]
[341513614,1730943047450,-4952.29,0.00024657,2]
[341513615,1730943047459,-500.0,0.00024658,2]
[341513616,1730943047469,-277.3058375,0.00024658,2]
[341513617,1730943047479,-1268.24,0.00024661,10]
[341513618,1730943047488,-8262.19482367,0.00024663,2]
[341513619,1730943047497,-500.0,0.00024671,2]
[341513620,1730943047507,-500.0,0.00024671,2]
[341513621,1730943047516,-500.0,0.00024671,2]
[341513622,1730943047526,-324.88143768,0.00024671,2]
[341513623,1730943047535,-500.0,0.00024671,2]
[341513624,1730943047544,-500.0,0.00024671,2]
[341513625,1730943047555,-628.42,0.00024671,2]
[341513626,1730943047564,-151.0,0.00024676,7]
[341513627,1730943047573,-158.061433,0.00024676,7]
[341513628,1730943047586,-158.061433,0.00024676,7]
[341513629,1730943047598,-3474.32,0.0002469,2]
[341513630,1730943047607,-710.41,0.0002469,2]
[341513631,1730943047616,-500.0,0.0002469,2]
[341513632,1730943047625,-612.48,0.0002469,2]
[341513633,1730943047634,-500.0,0.00024721,2]
[341513634,1730943047643,-500.0,0.00024721,2]
[341513635,1730943047653,-500.0,0.00024721,2]
[341513636,1730943047663,-503.91404979,0.00024721,2]
[341513637,1730943047672,-500.0,0.00024721,2]
[341513638,1730943047681,-500.0,0.00024721,2]
[341513639,1730943047691,-500.0,0.00024721,2]
[341513640,1730943047701,-500.0,0.00024721,2]
[341513641,1730943047710,-500.0,0.00024721,2]
[341513642,1730943047720,-630.18,0.00024721,2]
[341513643,1730943047729,-500.0,0.00024721,2]
[341513644,1730943047738,-503.17028996,0.00024721,2]
[341513645,1730943047747,-500.0,0.00024727,2]
[341513646,1730943047756,-1522.31,0.00024727,2]
[341513647,1730943047766,-6579.98,0.00024758,2]
[341513648,1730943047775,-500.0,0.00024758,2]
[341513649,1730943047785,-500.0,0.00024758,2]
[341513650,1730943047795,-500.0,0.00024758,2]
[341513651,1730943047804,-942.11,0.00024758,2]
[341513652,1730943047813,-587.0,0.00024775,2]
[341513653,1730943047824,-500.0,0.00024837,2]
[341513654,1730943047837,-500.0,0.00024837,2]
[341513655,1730943047847,-500.0,0.00024837,2]
[341513656,1730943047856,-500.0,0.00024931,2]
[341513657,1730943047865,-693.31,0.00024931,2]
[341513658,1730943047874,-735.56,0.00024931,2]
[341513659,1730943047884,-500.0,0.00024931,2]
[341513660,1730943047894,-4952.29,0.00024931,2]
[341513661,1730943047904,-500.0,0.00024945,2]
[341513662,1730943047914,-210.37815317,0.00024945,2]
[341513663,1730943047923,-500.0,0.00024945,2]
[341513664,1730943047933,-500.0,0.00024945,2]
[341513665,1730943047942,-500.0,0.00024945,2]
[341513666,1730943047951,-628.42,0.00024945,2]
[341513667,1730943047961,-3474.32,0.00024964,2]
[341513668,1730943047970,-710.41,0.00024964,2]
[341513669,1730943047980,-500.0,0.00024964,2]
[341513670,1730943047989,-612.48,0.00024964,2]
[341513671,1730943047998,-500.0,0.00024995,2]
[341513672,1730943048008,-500.0,0.00024995,2]
[341513673,1730943048017,-500.0,0.00024995,2]
[341513674,1730943048026,-366.11733526,0.00024995,2]
[341513675,1730943048036,-500.0,0.00024995,2]
[341513676,1730943048046,-482.44817967,0.00024995,2]
[341513677,1730943048055,-12617.71280587,0.00025,2]
[341513678,1730943048065,-18595.36,0.00025,14]
[341513679,1730943048074,-382.67,0.00025,14]
[341513680,1730943048086,-500.0,0.00025001,2]
[341513681,1730943048096,-1522.31,0.00025001,2]
[341513682,1730943048106,-521.44,0.00025022,3]
[341513683,1730943048116,-6579.98,0.00025032,2]
[341513684,1730943048125,-500.0,0.00025032,2]
[341513685,1730943048135,-500.0,0.00025032,2]
[341513686,1730943048144,-500.0,0.00025032,2]
[341513687,1730943048153,-942.11,0.00025032,2]
[341513688,1730943048162,-210.25225093,0.0002508,2]
[341513689,1730943048172,-5318.15845652,0.0002509,2]
[341513690,1730943048182,-500.0,0.00025111,2]
[341513691,1730943048191,-500.0,0.00025111,2]
[341513692,1730943048200,-308.80746148,0.00025155,2]
[341513693,1730943048210,-1000.0,0.00025155,2]
[341513694,1730943048218,-253.292176,0.00025184,2]
[341513695,1730943048228,-8262.19482367,0.00025193,2]
[341513696,1730943048237,-693.31,0.00025205,2]
[341513697,1730943048246,-735.56,0.00025205,2]
[341513698,1730943048255,-500.0,0.00025205,2]
[341513699,1730943048264,-4952.29,0.00025205,2]
[341513700,1730943048273,-500.0,0.00025219,2]
[341513701,1730943048282,-500.0,0.00025219,2]
[341513702,1730943048292,-500.0,0.00025219,2]
[341513703,1730943048304,-500.0,0.00025219,2]
[341513704,1730943048314,-628.42,0.00025219,2]
[341513705,1730943048323,-151.0,0.00025219,7]
[341513706,1730943048336,-158.061433,0.00025219,7]
[341513707,1730943048345,-158.061433,0.00025219,7]
[341513708,1730943048354,-3474.32,0.00025238,2]
[341513709,1730943048363,-710.41,0.00025238,2]
[341513710,1730943048373,-500.0,0.00025238,2]
[341513711,1730943048383,-612.48,0.00025238,2]
[341513712,1730943048393,-8262.19482367,0.00025247,2]
[341513713,1730943048402,-500.0,0.00025269,2]
[341513714,1730943048412,-500.0,0.00025269,2]
[341513715,1730943048421,-500.0,0.00025269,2]
[341513716,1730943048430,-500.0,0.00025269,2]
[341513717,1730943048439,-500.0,0.00025275,2]
[341513718,1730943048448,-1522.31,0.00025275,2]
[341513719,1730943048458,-6579.98,0.00025306,2]
[341513720,1730943048467,-500.0,0.00025306,2]
[341513721,1730943048476,-500.0,0.00025306,2]
[341513722,1730943048485,-500.0,0.00025306,2]
[341513723,1730943048495,-942.11,0.00025306,2]
[341513724,1730943048504,-500.0,0.00025385,2]
[341513725,1730943048513,-500.0,0.00025385,2]
[341513726,1730943048523,-693.31,0.00025479,2]
[341513727,1730943048532,-735.56,0.00025479,2]
[341513728,1730943048541,-264.37105085,0.00025479,2]
[341513729,1730943048550,-500.0,0.00025493,2]
[341513730,1730943048560,-500.0,0.00025493,2]
[341513731,1730943048570,-500.0,0.00025493,2]
[341513732,1730943048581,-500.0,0.00025493,2]
[341513733,1730943048590,-628.42,0.00025493,2]
[341513734,1730943048600,-3474.32,0.00025512,2]
[341513735,1730943048609,-710.41,0.00025512,2]
[341513736,1730943048618,-500.0,0.00025512,2]
[341513737,1730943048628,-612.48,0.00025512,2]
[341513738,1730943048637,-500.0,0.00025543,2]
[341513739,1730943048646,-608.386858,0.00025543,2]
[341513740,1730943048655,-500.0,0.00025549,2]
[341513741,1730943048665,-1522.31,0.00025549,2]
[341513742,1730943048674,-1000.0,0.00025575,2]
[341513743,1730943048683,-6579.98,0.0002558,2]
[341513744,1730943048692,-500.0,0.0002558,2]
[341513745,1730943048701,-575.37,0.0002558,2]
[341513746,1730943048711,-500.0,0.0002558,2]
[341513747,1730943048720,-942.11,0.0002558,2]
[341513748,1730943048729,-8262.19482367,0.00025612,2]
[341513749,1730943048738,-500.0,0.00025659,2]
[341513750,1730943048748,-166.86486162,0.00025659,2]
[341513751,1730943048757,-693.31,0.00025753,2]
[341513752,1730943048766,-735.56,0.00025753,2]
[341513753,1730943048776,-500.0,0.00025767,2]
[341513754,1730943048785,-500.0,0.00025767,2]
[341513755,1730943048795,-500.0,0.00025767,2]
[341513756,1730943048804,-500.0,0.00025767,2]
[341513757,1730943048814,-628.42,0.00025767,2]
[341513758,1730943048823,-151.0,0.00025767,7]
[341513759,1730943048834,-158.061433,0.00025767,7]
[341513760,1730943048843,-158.061433,0.00025767,7]
[341513761,1730943048852,-8262.19482367,0.00025785,2]
[341513762,1730943048862,-3474.32,0.00025786,2]
[341513763,1730943048870,-710.41,0.00025786,2]
[341513764,1730943048880,-500.0,0.00025786,2]
[341513765,1730943048890,-612.48,0.00025786,2]
[341513766,1730943048979,-500.0,0.00025817,2]
[341513767,1730943048988,-500.0,0.00025823,2]
[341513768,1730943048998,-1522.31,0.00025823,2]
[341513769,1730943049008,-6579.98,0.00025854,2]
[341513770,1730943049017,-500.0,0.00025854,2]
[341513771,1730943049027,-500.0,0.00025854,2]
[341513772,1730943049036,-942.11,0.00025854,2]
[341513773,1730943049045,-500.0,0.00025933,2]
[341513774,1730943049054,-210.25225093,0.00026009,2]
[341513775,1730943049063,-155.049136,0.00026027,7]
[341513776,1730943049072,-151.0,0.00026027,7]
[341513777,1730943049083,-151.0,0.00026027,7]
[341513778,1730943049093,-693.31,0.00026027,2]
[341513779,1730943049102,-735.56,0.00026027,2]
[341513780,1730943049112,-500.0,0.00026041,2]
[341513781,1730943049121,-500.0,0.00026041,2]
[341513782,1730943049131,-500.0,0.00026041,2]
[341513783,1730943049141,-500.0,0.00026041,2]
[341513784,1730943049150,-628.42,0.00026041,2]
[341513785,1730943049159,-3474.32,0.0002606,2]
[341513786,1730943049168,-710.41,0.0002606,2]
[341513787,1730943049178,-500.0,0.0002606,2]
[341513788,1730943049187,-612.48,0.0002606,2]
[341513789,1730943049196,-502.28211053,0.00026079,2]
[341513790,1730943049206,-503.47938038,0.00026079,2]
[341513791,1730943049216,-500.0,0.00026079,2]
[341513792,1730943049225,-604.76,0.00026079,2]
[341513793,1730943049234,-500.0,0.00026079,2]
[341513794,1730943049244,-500.0,0.00026079,2]
[341513795,1730943049253,-500.0,0.00026079,2]
[341513796,1730943049263,-618.98616778,0.00026079,2]
[341513797,1730943049274,-501.03484354,0.00026079,2]
[341513798,1730943049284,-500.0,0.00026079,2]
[341513799,1730943049295,-505.58408119,0.00026079,2]
[341513800,1730943049308,-507.06489251,0.00026079,2]
[341513801,1730943049318,-502.36314886,0.00026079,2]
[341513802,1730943049329,-503.19414435,0.00026079,2]
[341513803,1730943049340,-500.0,0.00026079,2]
[341513804,1730943049350,-500.0,0.00026079,2]
[341513805,1730943049359,-500.0,0.00026079,2]
[341513806,1730943049369,-500.0,0.00026079,2]
[341513807,1730943049379,-540.01,0.00026079,2]
[341513808,1730943049389,-504.54564885,0.00026079,2]
[341513809,1730943049399,-500.82308395,0.00026079,2]
[341513810,1730943049409,-500.0,0.00026079,2]
[341513811,1730943049418,-500.0,0.00026079,2]
[341513812,1730943049428,-500.0,0.00026079,2]
[341513813,1730943049438,-502.71976538,0.00026079,2]
[341513814,1730943049447,-1635.99,0.00026079,2]
[341513815,1730943049458,-500.0,0.00026079,2]
[341513816,1730943049467,-523.57950383,0.00026079,2]
[341513817,1730943049477,-500.0,0.00026079,2]
[341513818,1730943049487,-500.0,0.00026079,2]
[341513819,1730943049496,-504.94192636,0.00026079,2]
[341513820,1730943049506,-515.91111743,0.00026079,2]
[341513821,1730943049515,-509.37322377,0.00026079,2]
[341513822,1730943049525,-506.89949458,0.00026079,2]
[341513823,1730943049535,-241.94287423,0.00026079,2]
[341513824,1730943049544,-531.18029616,0.00026079,2]
[341513825,1730943049553,-319.3600458,0.00026091,2]
[341513826,1730943049562,-500.0,0.00026097,2]
[341513827,1730943049572,-1522.31,0.00026097,2]
[341513828,1730943049584,-6579.98,0.00026128,2]
[341513829,1730943049593,-500.0,0.00026128,2]
[341513830,1730943049602,-500.0,0.00026128,2]
[341513831,1730943049612,-942.11,0.00026128,2]
[341513832,1730943049622,-158.061433,0.00026171,7]
[341513833,1730943049632,-158.061433,0.00026171,7]
[341513834,1730943049641,-500.0,0.00026207,2]
[341513835,1730943049650,-8262.19482367,0.00026251,2]
[341513836,1730943049660,-522.48846279,0.00026265,2]
[341513837,1730943049669,-500.0,0.00026265,2]
[341513838,1730943049678,-535.85,0.00026265,2]
[341513839,1730943049687,-500.0,0.00026265,2]
[341513840,1730943049697,-500.0,0.00026265,2]
[341513841,1730943049705,-500.0,0.00026265,2]
[341513842,1730943049715,-500.0,0.00026265,2]
[341513843,1730943049724,-666.12,0.00026265,2]
[341513844,1730943049733,-506.94783088,0.00026265,2]
[341513845,1730943049744,-500.0,0.00026265,2]
[341513846,1730943049754,-500.0,0.00026265,2]
[341513847,1730943049765,-1237.65,0.00026265,2]
[341513848,1730943049774,-500.0,0.00026265,2]
[341513849,1730943049783,-500.0,0.00026265,2]
[341513850,1730943049792,-500.0,0.00026265,2]
[341513851,1730943049801,-500.0,0.00026265,2]
[341513852,1730943049810,-597.65792378,0.00026265,2]
[341513853,1730943049820,-500.0,0.00026265,2]
[341513854,1730943049829,-500.0,0.00026265,2]
[341513855,1730943049840,-500.0,0.00026265,2]
[341513856,1730943049850,-500.0,0.00026265,2]
[341513857,1730943049860,-500.0,0.00026265,2]
[341513858,1730943049869,-506.19708837,0.00026265,2]
[341513859,1730943049878,-500.0,0.00026265,2]
[341513860,1730943049888,-500.0,0.00026265,2]
[341513861,1730943049897,-500.0,0.00026265,2]
[341513862,1730943049908,-506.21018053,0.00026265,2]
[341513863,1730943049919,-500.0,0.00026265,2]